[Event "44th Chess Olympiad Women 2022"]
[Site "Chennai"]
[Date "2022.07.29"]
[Round "1.45"]
[White "Puuska, Heini"]
[Black "Moreno, Akiane"]
[Result "1-0"]
[ECO "D05"]
[WhiteElo "2010"]
[BlackElo "1232"]
[Annotator "TA"]
[PlyCount "101"]
[EventDate "2022.07.29"]
[EventType "team-tourn"]
[EventCountry "IND"]
[SourceTitle "playchess.com"]
[Source "ChessBase"]
[SourceQuality "1"]
[WhiteTeam "Finland"]
[BlackTeam "CPV"]
[WhiteTeamCountry "FIN"]
[TimeControl "40/5400+30:1800+30"]

{[%evp 10,100,13,7,17,4,48,30,87,49,104,68,125,110,137,124,274,155,150,157,156,156,150,154,157,141,148,136,163,143,188,178,258,270,316,329,312,303,513,512,535,551,539,525,752,704,1614,1396,1426,1411,2914,2777,2557,2419,2417,2391,2044,1949,29985,29986,29987,29988,29989,29990,29991,29991,29990,29989,29990,29990,29991,29991,29992,29993,29993,29993,29993,29994,29994,29995,29995,29996,29996,29997,29997,29997,29998,29997,29997,29997,29998,29999,29999]} 1. d4 {[%emt 0:00:11]} d5 {[%emt 0:00:05]} 2. Nf3 {[%emt 0:00:13]} Nf6 {[%emt 0:00:59]} 3. e3 {[%emt 0:00:51]} e6 {[%emt 0:00:21]} 4. Bd3 {[%emt 0:00:25]} Bd6 {[%emt 0:00:29]} 5. O-O {[%emt 0:00:28]} O-O {[%emt 0:00:21]} 6. b3 {[%emt 0:00:36]} Re8 {[%emt 0:00:38] D05: Colle System with ...e6.} 7. Bb2 {[%emt 0:00:38]} Nc6 {[%emt 0:01:47]} 8. Ne5 {[%emt 0:03:04] [#]} Re7 $146 {[%emt 0:04:56]} (8... Bxe5 $11 {keeps the balance.} 9. dxe5 Nd7) ({Predecessor:} 8... Bxe5 9. dxe5 Nd7 10. Qh5 Nf8 11. Nd2 Nb4 12. Be2 c5 13. a3 Nc6 14. f4 c4 15. Rf3 {½-½ (67) Kilgus,G (2446)-Mica,M (2304) Vienna 2021}) 9. a3 {[%emt 0:01:48]} h6 {[%emt 0:06:51]} (9... Bxe5 $14 10. dxe5 Nd7) 10. Nd2 {[%emt 0:05:20]} Qe8 {[%emt 0:01:06]} (10... Bxe5 $14 11. dxe5 Nd7) 11. c4 $16 {[%emt 0:01:13] Black must now prevent Nxc6. White is more active.} b6 {[%emt 0:02:55]} 12. Rc1 {[%emt 0:02:12] And now Nxc6 would win.} Ba6 {[%emt 0:00:05] [#] This move loses the game for Black.} (12... Nd8 $16 {was called for.} 13. b4 Bb7) 13. Nxc6 {[%emt 0:01:33]} (13. c5 $1 $18 Bxd3 14. Nxd3) 13... Qxc6 {[%emt 0:01:15]} 14. cxd5 {[%emt 0:01:42]} Qb7 {[%emt 0:01:21]} 15. Bxa6 {[%emt 0:00:36]} Qxa6 {[%emt 0:01:12]} 16. dxe6 {[%emt 0:00:35]} Rxe6 {[%emt 0:01:21]} 17. Re1 {[%emt 0:03:56]} Qb7 {[%emt 0:06:19]} 18. Nc4 {[%emt 0:03:02]} Rd8 {[%emt 0:00:32]} 19. Qc2 Nh5 {[%emt 0:02:02]} 20. Nxd6 {[%emt 0:03:30]} Rdxd6 {[%emt 0:02:11]} (20... cxd6 {might work better.} 21. Qc7 Qxc7 22. Rxc7 d5) 21. Qxc7 $18 {[%emt 0:02:37]} Qxc7 {[%emt 0:03:48]} 22. Rxc7 {[%emt 0:01:55]} a5 {[%emt 0:00:00]} 23. Rec1 {[%emt 0:02:05]} Kh7 $2 {[%emt 0:00:14]} (23... f5 {is a better defense.} 24. Rc8+ Kf7) 24. Rxf7 {[%emt 0:00:41]} b5 {[%emt 0:00:57]} 25. Rf5 {[%emt 0:03:43]} Nf6 {[%emt 0:00:48]} 26. Rxb5 {[%emt 0:00:32]} Ne4 {[%emt 0:01:14]} 27. f3 {[%emt 0:03:59]} Rc6 {[%emt 0:00:32]} 28. fxe4 {[%emt 0:00:55]} Rxc1+ {[%emt 0:00:24]} 29. Bxc1 {[%emt 0:00:08]} Rxe4 {[%emt 0:00:25]} 30. Rxa5 {[%emt 0:01:00][%mdl 4096] Endgame KRB-KR} Re8 {[%emt 0:00:25]} 31. b4 {[%emt 0:00:31]} Rc8 {[%emt 0:00:10]} 32. Rc5 {[%emt 0:00:14]} Rf8 {[%emt 0:01:21]} 33. b5 {[%emt 0:00:17] [#] aiming for b6.} g5 {[%emt 0:00:06]} 34. b6 {[%emt 0:01:36] White mates.} Kg6 {[%emt 0:01:04]} 35. a4 {[%emt 0:00:50]} Kh5 {[%emt 0:00:20]} 36. a5 {[%emt 0:00:53]} Kh4 {[%emt 0:00:22]} 37. Bd2 {[%emt 0:00:46]} Rb8 {[%emt 0:01:06]} 38. Be1+ {[%emt 0:00:32]} Kh5 {[%emt 0:00:25]} 39. Bg3 {[%emt 0:00:27]} Re8 {[%emt 0:00:29]} 40. Be5 {[%emt 0:00:13]} Kh4 {[%emt 0:01:23]} 41. b7 {[%emt 0:30:26]} Kg4 {[%emt 0:31:03]} 42. b8=Q {[%emt 0:00:24]} Rxb8 {[%emt 0:01:02]} 43. Bxb8 {[%emt 0:00:13]} Kh5 {[%emt 0:03:49]} 44. a6 {[%emt 0:00:16]} Kg6 {[%emt 0:00:13]} 45. a7 {[%emt 0:00:14]} h5 {[%emt 0:00:05]} 46. a8=Q {[%emt 0:00:18]} h4 {[%emt 0:00:20]} 47. Qe4+ {[%emt 0:00:52]} Kh5 {[%emt 0:00:24]} 48. Qf3+ {[%emt 0:00:14]} Kg6 {[%emt 0:00:46]} 49. Rc6+ {[%emt 0:00:09]} Kh7 {[%emt 0:01:04]} 50. Qf7+ {[%emt 0:02:27]} Kh8 {[%emt 0:00:22]} 51. Rc8# {[%emt 0:00:09] Weighted Error Value: White=0.18 (very precise) /Black=0.87} 1-0

[Event "44th Chess Olympiad Women 2022"]
[Site "Chennai"]
[Date "2022.07.29"]
[Round "1.45"]
[White "Martins, Katlene Jussara"]
[Black "Nazarova, Anastasia"]
[Result "0-1"]
[ECO "B31"]
[WhiteElo "1287"]
[BlackElo "2208"]
[Annotator "TA"]
[PlyCount "68"]
[EventDate "2022.07.29"]
[EventType "team-tourn"]
[EventCountry "IND"]
[SourceTitle "playchess.com"]
[Source "ChessBase"]
[SourceQuality "1"]
[WhiteTeam "CPV"]
[BlackTeam "Finland"]
[BlackTeamCountry "FIN"]
[TimeControl "40/5400+30:1800+30"]

{[%evp 10,67,25,12,46,27,30,3,12,0,15,-97,-87,-97,-94,-97,-60,-86,-68,-94,-74,-99,-89,-141,-118,-154,-127,-287,-241,-348,-325,-375,-379,-469,-449,-488,-451,-1004,-983,-1066,-1067,-1021,-1041,-1118,-1108,-2730,-2754,-29979,-3660,-29990,-29991,-29991,-29989,-29992,-29993,-29993,-29994,-29995,-29996,-29999]} 1. e4 {[%emt 0:00:03]} c5 {[%emt 0:00:06]} 2. Nc3 {[%emt 0:00:12]} Nc6 {[%emt 0:00:04]} 3. Nf3 {[%emt 0:00:09]} g6 {[%emt 0:00:08]} 4. Bb5 {[%emt 0:00:21]} Nd4 {[%emt 0:00:30]} 5. Ba4 {[%emt 0:00:47]} Bg7 {[%emt 0:00:11]} 6. O-O {[%emt 0:00:16]} e6 {[%emt 0:01:51] B31: Sicilian: 2...Nc6 3 Bb5 g6.} 7. d3 {[%emt 0:02:03]} a6 {[%emt 0:04:58] [#]} 8. Re1 $146 {[%emt 0:04:07]} ({Predecessor:} 8. Nxd4 cxd4 9. Ne2 Ne7 10. Bg5 h6 11. Bh4 O-O 12. f4 d6 13. Qd2 f5 14. Bb3 {½-½ (60) Gavrilescu,D (2473)-Miesbauer,J (2409) Pardubice 2019}) 8... b5 {[%emt 0:03:08][%cal Bb7b5,Bb5b4][%mdl 32] The position is equal.} 9. Bb3 {[%emt 0:04:48]} Bb7 {[%emt 0:00:26]} 10. a4 {[%emt 0:04:15]} (10. Nxd4 $11 cxd4 11. Ne2) 10... b4 $17 {[%emt 0:04:21]} 11. Ne2 {[%emt 0:03:19]} Nxb3 {[%emt 0:02:51]} 12. cxb3 {[%emt 0:01:28]} e5 {[%emt 0:01:19]} 13. Qc2 {[%emt 0:01:51]} d6 {[%emt 0:02:52]} 14. Be3 {[%emt 0:02:23]} Rc8 {[%emt 0:01:11]} 15. Rad1 {[%emt 0:01:35]} Ne7 {[%emt 0:00:29]} 16. Qc4 {[%emt 0:02:41]} (16. Nd2 $142) 16... O-O {[%emt 0:10:27]} 17. h3 {[%emt 0:03:13]} h6 {[%emt 0:00:00]} 18. Rd2 $2 {[%emt 0:02:57] [#] Loses the game.} (18. Nd2 $17 {was worth a try.}) 18... Kh7 {[%emt 0:00:00]} 19. Ng3 {[%emt 0:04:19]} (19. Rdd1 $142) 19... f5 $19 {[%emt 0:01:58]} 20. exf5 {[%emt 0:05:34]} gxf5 {[%emt 0:01:23]} 21. Nh5 {[%emt 0:02:00]} f4 {[%emt 0:07:57]} 22. Bxf4 {[%emt 0:06:10]} exf4 {[%emt 0:01:51]} 23. Re4 {[%emt 0:00:56]} (23. d4 $142 Bxf3 24. Nxg7 Kxg7 25. gxf3) 23... d5 {[%emt 0:01:03]} 24. Qc1 {[%emt 0:02:04]} dxe4 {[%emt 0:00:11]} 25. dxe4 {[%emt 0:00:29]} Qc7 {[%emt 0:01:15]} 26. Qc2 {[%emt 0:01:19]} Ng6 {[%emt 0:01:17]} 27. g3 {[%emt 0:04:08]} fxg3 {[%emt 0:00:59]} 28. Rd3 {[%emt 0:01:10]} Bxe4 {[%emt 0:00:22]} (28... gxf2+ $142 29. Qxf2 Bxe4 30. Nf4 Nxf4 31. Qe3 Bxd3 32. Kh1 Qd7 33. Nh4 {[#]} Be5 $1 {[%mdl 512]} 34. Kh2 Ng6+ 35. Qxe5 Nxe5 36. Kg3 Qg7+ 37. Ng6 Qxg6+ 38. Kh2 Nf3+ 39. Kh1 Qg1#) 29. Qe2 {[%emt 0:01:25]} gxf2+ {[%emt 0:00:16] Black mates.} 30. Kxf2 {[%emt 0:00:34]} Qh2+ {[%emt 0:00:55]} 31. Ke3 {[%emt 0:00:42]} Rxf3+ {[%emt 0:00:45]} 32. Qxf3 {[%emt 0:01:26]} Bxf3 {[%emt 0:00:26]} 33. Kxf3 {[%emt 0:00:11]} Rf8+ {[%emt 0:01:04]} 34. Ke4 {[%emt 0:00:28]} Qe5# {[%emt 0:00:07] Weighted Error Value: White=1.12/Black=0.40} 0-1

[Event "44th Chess Olympiad Women 2022"]
[Site "Chennai"]
[Date "2022.07.29"]
[Round "1.46"]
[White "Omonova, Umida"]
[Black "Felix, Tobi"]
[Result "1-0"]
[ECO "B15"]
[WhiteElo "2195"]
[BlackElo "1460"]
[Annotator "TA"]
[PlyCount "57"]
[EventDate "2022.07.29"]
[EventType "team-tourn"]
[EventCountry "IND"]
[SourceTitle "playchess.com"]
[Source "ChessBase"]
[SourceQuality "1"]
[WhiteTeam "Uzbekistan"]
[BlackTeam "Ghana"]
[WhiteTeamCountry "UZB"]
[BlackTeamCountry "GHA"]
[TimeControl "40/5400+30:1800+30"]

{[%evp 18,57,45,29,39,40,38,49,70,20,69,46,274,270,271,281,339,347,379,324,365,263,264,275,335,339,477,291,372,211,406,238,543,347,502,449,645,506,501,506,502,496]} 1. e4 {[%emt 0:00:12]} c6 {[%emt 0:00:31]} 2. d4 {[%emt 0:00:15]} d5 {[%emt 0:00:07]} 3. Nd2 {[%emt 0:00:11]} dxe4 {[%emt 0:00:34]} 4. Nxe4 {[%emt 0:00:18]} Nf6 {[%emt 0:00:32]} 5. Nxf6+ {[%emt 0:00:42]} exf6 {[%emt 0:00:06]} 6. c3 {[%emt 0:00:34]} Bd6 {[%emt 0:02:15]} 7. Bd3 {[%emt 0:03:45]} O-O {[%emt 0:02:05]} 8. Qc2 {[%emt 0:00:29]} h6 {[%emt 0:01:49]} 9. Ne2 {[%emt 0:00:10]} Re8 {[%emt 0:03:53]} 10. Be3 {[%emt 0:01:21]} Be6 {[%emt 0:11:50] B15: Caro-Kann: 3 Nc3: 3...g6 and 3...dxe4 4 Nxe4 Nf6 5 Nxf6+ exf6.} 11. O-O {[%emt 0:00:20]} Qc7 {[%emt 0:01:52]} 12. h3 {[%emt 0:02:18]} Nd7 {[%emt 0:03:03] White is slightly better.} 13. Rad1 {[%emt 0:00:31] [#]} ({Better is} 13. c4 $14) 13... Rad8 $146 {[%emt 0:06:53]} (13... Bxa2 $2 14. b3 $18) (13... b5 $11) ({Predecessor:} 13... Nf8 14. c4 Qb8 15. Rfe1 h5 16. a3 g6 17. Bc1 f5 18. b3 Nh7 19. Bb2 Qc7 {1-0 (50) Farahat,A (2420)-Douissa,O (2270) Oran 2017}) 14. c4 $14 {[%emt 0:02:31][%cal Od4d5,Bc3c4,Bc4d5][%mdl 32] Strongly threatening d5!} Qb8 $2 {[%emt 0:07:37] [#]} (14... Nb6 $14) 15. d5 $1 $18 {[%emt 0:05:18]} (15. Bh7+ Kh8 $14) 15... cxd5 {[%emt 0:07:45]} 16. cxd5 {[%emt 0:00:22]} ({Weaker is} 16. Bh7+ Kh8 $14) 16... Rc8 {[%emt 0:03:31]} 17. Qa4 {[%emt 0:04:14]} Bxh3 {[%emt 0:01:48][%cal Oe8e3]} 18. gxh3 {[%emt 0:00:09]} Nc5 {[%emt 0:12:20]} 19. Bxc5 {[%emt 0:01:52]} Rxc5 {[%emt 0:03:05]} 20. Rfe1 {[%emt 0:01:20]} a6 {[%emt 0:05:43]} 21. Nd4 {[%emt 0:04:09]} Rec8 {[%emt 0:07:21]} (21... b5 $142 22. Qxa6 Rxd5) 22. Qb3 {[%emt 0:03:44]} Kh8 {[%emt 0:03:41]} 23. Re2 {[%emt 0:01:22]} (23. Nf5 $142) 23... Rc1 $2 {[%emt 0:08:50]} (23... g6 24. Kg2 Kg7) 24. Kg2 {[%emt 0:00:57]} (24. Rxc1 $142 Rxc1+ 25. Kg2) 24... R1c7 {[%emt 0:01:30]} (24... Rxd1 {is a better chance.} 25. Qxd1 g6) 25. Rde1 {[%emt 0:00:06] [#] And now Nf5 would win.} Be5 {[%emt 0:01:02]} (25... g6 $142 26. Bb1 Rd8) 26. Nf3 {[%emt 0:02:22] White is clearly winning.} Re7 {[%emt 0:01:25]} (26... Bd6 $142 27. Nd2 Rf8) 27. Qb6 {[%emt 0:01:02]} Bc7 {[%emt 0:01:13] ...Rxe2 is the strong threat.} 28. Qd4 {[%emt 0:00:27]} Rxe2 {[%emt 0:00:19]} 29. Rxe2 {[%emt 0:00:01] Black got outplayed after the opening.  Weighted Error Value: White=0.48/Black=0.95} 1-0

[Event "44th Chess Olympiad Women 2022"]
[Site "Chennai"]
[Date "2022.07.29"]
[Round "1.46"]
[White "Khamdamova, Afruza"]
[Black "Dotse Dzidzor Esi"]
[Result "1-0"]
[ECO "B15"]
[WhiteElo "1969"]
[BlackElo "1195"]
[Annotator "TA"]
[PlyCount "83"]
[EventDate "2022.07.29"]
[EventType "team-tourn"]
[EventCountry "IND"]
[SourceTitle "playchess.com"]
[Source "ChessBase"]
[SourceQuality "1"]
[WhiteTeam "Uzbekistan"]
[BlackTeam "Ghana"]
[WhiteTeamCountry "UZB"]
[BlackTeamCountry "GHA"]
[TimeControl "40/5400+30:1800+30"]

{[%evp 9,82,119,128,122,150,139,201,160,159,147,151,134,152,148,147,135,356,363,725,726,716,707,722,710,691,677,689,680,723,723,782,786,843,843,846,845,945,924,1232,1231,1391,1370,1976,1866,29966,5356,29980,29981,29981,29982,29982,29983,29985,29986,29988,29989,29990,29991,29991,29988,29993,29994,29994,29995,29995,29995,29996,29996,29996,29997,29997,29998,29998,29999,29999]} 1. e4 {[%emt 0:00:06]} c6 {[%emt 0:00:13]} 2. d4 {[%emt 0:00:08]} d5 {[%emt 0:00:09]} 3. Nc3 {[%emt 0:00:17]} e6 {[%emt 0:02:45]} 4. Nf3 {[%emt 0:00:42]} c5 {[%emt 0:03:52]} 5. exd5 {[%emt 0:00:17]} exd5 {[%emt 0:04:50]} 6. dxc5 {[%emt 0:00:09] B15: Caro-Kann: 3 Nc3: 3...g6 and 3...dxe4 4 Nxe4 Nf6 5 Nxf6+ exf6.} Bxc5 {[%emt 0:02:27]} 7. Qxd5 {[%emt 0:03:16]} Nd7 {[%emt 0:04:01] [#]} (7... Qe7+ $16 {was worth a try.} 8. Ne4 Bb4+ 9. Bd2 (9. c3 Nf6 $16) 9... Nf6 10. Bb5+ Nbd7) 8. Bc4 $146 {[%emt 0:03:26][%csl Gc4][%cal Rd5f7] [#] White is clearly better.} ({Predecessor:} 8. Bb5 Ngf6 9. Bxd7+ Nxd7 10. O-O O-O 11. Be3 Bxe3 12. fxe3 Qb6 13. Na4 Qxe3+ 14. Rf2 {0-1 (57) Kevlishvili,R (1482)-Van Foreest,J (1446) Enschede 2009}) 8... Qe7+ {[%emt 0:03:41]} 9. Qe4 {[%emt 0:01:18]} Ngf6 {[%emt 0:06:20]} 10. Qxe7+ {[%emt 0:00:22]} Bxe7 {[%emt 0:00:16]} 11. O-O $36 {[%emt 0:00:29][%cal Bh1f1,Bf1e1,Be1e5][%mdl 2080] Threatens to win with Re1. Black is under strong pressure.} O-O {[%emt 0:00:14]} 12. Re1 {[%emt 0:02:16] White is more active.} Re8 {[%emt 0:05:29] A mistake that costs the game.} (12... Bc5 $16 13. a3 Nb6) 13. Ng5 $18 {[%emt 0:00:58]} Ne5 {[%emt 0:28:42]} (13... Kf8 14. Bxf7 Rd8) 14. Rxe5 {[%emt 0:00:28]} Be6 {[%emt 0:00:15]} 15. Nxe6 {[%emt 0:00:17]} Bd6 {[%emt 0:01:38] Inhibits Nc7.} 16. Re2 {[%emt 0:00:18]} fxe6 {[%emt 0:07:46]} 17. Bxe6+ {[%emt 0:00:10]} Kh8 {[%emt 0:00:30]} 18. Bg5 {[%emt 0:00:12]} Rf8 {[%emt 0:07:19]} 19. Nd5 {[%emt 0:00:50]} Nxd5 {[%emt 0:01:53]} 20. Bxd5 {[%emt 0:00:06]} Rab8 {[%emt 0:02:24]} 21. Be7 {[%emt 0:00:29]} Bxe7 {[%emt 0:01:00]} 22. Rxe7 {[%emt 0:06:27]} Rbe8 {[%emt 0:02:37]} 23. Rae1 {[%emt 0:00:13]} Rxe7 {[%emt 0:00:18]} 24. Rxe7 {[%emt 0:00:06][%mdl 4096] Endgame KRB-KR} h6 {[%emt 0:01:08]} 25. Rxb7 {[%emt 0:00:08]} a6 {[%emt 0:01:30]} 26. c4 {[%emt 0:00:13]} Kh7 {[%emt 0:00:24]} 27. c5 {[%emt 0:00:26]} (27. Be4+ $142 Kg8 28. c5 a5 29. c6 Rc8 30. c7 Kf7 31. Bf5 Rxc7 32. Rxc7+ Kf6 {[#]} 33. a4 $1) 27... Rd8 {[%emt 0:05:40]} 28. Be4+ {[%emt 0:00:07] White mates.} Kg8 {[%emt 0:00:24]} 29. f3 {[%emt 0:00:06]} Kf8 {[%emt 0:00:14]} 30. c6 {[%emt 0:00:08]} Rd1+ {[%emt 0:04:11]} 31. Kf2 {[%emt 0:00:06]} Rd2+ {[%emt 0:00:12]} 32. Ke3 {[%emt 0:00:06]} Rd8 {[%emt 0:01:02]} 33. c7 {[%emt 0:00:13][%cal Rc7d8]} Rc8 {[%emt 0:01:14]} 34. Rb8 {[%emt 0:00:05]} Re8 {[%emt 0:02:09]} 35. Rxe8+ {[%emt 0:00:18]} Kxe8 {[%emt 0:00:39]} 36. c8=Q+ {[%emt 0:00:08]} Ke7 {[%emt 0:00:00]} 37. Bd5 {[%emt 0:00:00]} a5 {[%emt 0:00:00]} 38. Qe6+ {[%emt 0:00:00]} Kd8 {[%emt 0:00:00]} 39. Qd6+ {[%emt 0:00:00]} Ke8 {[%emt 0:00:00]} 40. Be6 {[%emt 0:00:00]} g5 {[%emt 0:00:00]} 41. Qd7+ {[%emt 0:00:33]} Kf8 {[%emt 0:04:02]} 42. Qf7# {[%emt 0:00:04] Weighted Error Value: White=0.06 (flawless) /Black=0.65} 1-0

[Event "44th Chess Olympiad Women 2022"]
[Site "Chennai"]
[Date "2022.07.29"]
[Round "1.46"]
[White "Benson, Maud"]
[Black "Bobomurodova, Maftuna"]
[Result "0-1"]
[ECO "D20"]
[WhiteElo "1334"]
[BlackElo "1914"]
[Annotator "TA"]
[PlyCount "100"]
[EventDate "2022.07.29"]
[EventType "team-tourn"]
[EventCountry "IND"]
[SourceTitle "playchess.com"]
[Source "ChessBase"]
[SourceQuality "1"]
[WhiteTeam "Ghana"]
[BlackTeam "Uzbekistan"]
[WhiteTeamCountry "GHA"]
[BlackTeamCountry "UZB"]
[TimeControl "40/5400+30:1800+30"]

{[%evp 9,100,-3,-10,-24,-22,-29,-24,-26,-33,-21,-18,-26,-28,-33,-25,-18,-15,-26,0,-8,-12,-36,2,12,9,-75,-42,-73,-49,-83,-82,-84,-85,-204,-170,-164,-173,-183,-124,-209,-214,-214,-213,-255,-212,-222,-207,-208,-142,-144,-147,-227,-235,-225,-241,-283,-262,-379,-369,-542,-543,-639,-639,-616,-612,-611,-556,-565,-566,-660,-535,-767,-751,-767,-767,-767,-767,-763,-759,-894,-883,-29970,-29971,-29973,-29980,-29974,-29975,-29978,-29976,-29976,-29977,-29977,-29978]} 1. d4 {[%emt 0:00:04] RR} d5 {[%emt 0:00:21]} 2. c4 {[%emt 0:00:28]} dxc4 {[%emt 0:00:09]} 3. e4 {[%emt 0:00:20]} Nf6 {[%emt 0:00:42]} 4. Nc3 {[%emt 0:03:14]} e5 {[%emt 0:10:14]} 5. Nf3 {[%emt 0:05:47][%cal Bg1f3,Bf3d4,Bd4b5][%mdl 32]} exd4 {[%emt 0:02:20]} 6. Nxd4 {[%emt 0:03:27] D20: Queen's Gambit Accepted: 3 e3 and 3 e4.} c5 {[%emt 0:03:34]} 7. Ndb5 {[%emt 0:03:52]} a6 {[%emt 0:01:13]} 8. Qa4 {[%emt 0:04:54] Black has an edge.} Bd7 $1 {[%emt 0:07:54]} 9. Bf4 {[%emt 0:03:37] [#]} Be7 $146 {[%emt 0:05:02]} (9... Bxb5 $2 10. Nxb5 axb5 11. Qxa8 $18) ({Predecessor:} 9... Nh5 10. Be5 f6 11. Nc7+ Qxc7 12. Bxc7 Bxa4 13. Nxa4 Nd7 14. Nb6 Nxb6 15. Bxb6 Nf4 16. O-O-O Rc8 17. Bxc4 Rc6 18. Rd8+ {1-0 (18) Debray,C (2356)-Guedon,S (2199) Issy les Moulineaux 2013 EXT 2015 [RR]}) 10. Nc7+ $1 {[%emt 0:15:12] [#]} Qxc7 $1 {[%emt 0:00:33]} 11. Bxc7 {[%emt 0:00:23]} Bxa4 {[%emt 0:00:02]} 12. Nxa4 {[%emt 0:00:10] Black must now prevent Nb6.} Nbd7 {[%emt 0:00:47][%cal Bb8d7,Bd7e5,Be5c6][%mdl 32]} (12... Nxe4 $2 13. Nb6 Nc6 14. f3 $18 (14. Nxa8 Kd7 $16) (14. Bxc4 Ra7 $16)) 13. Nc3 {[%emt 0:06:36]} Rc8 {[%emt 0:02:18]} 14. Bf4 {[%emt 0:00:33]} b5 $36 {[%emt 0:00:08][%mdl 2048] Black has some pressure.} 15. f3 {[%emt 0:05:44]} Nh5 {[%emt 0:08:19]} 16. Be3 {[%emt 0:04:57]} Ne5 {[%emt 0:02:39]} 17. Kd2 {[%emt 0:06:41] Inhibits Nd3.} (17. a4 $11) 17... O-O {[%emt 0:05:36]} (17... f5 $5 18. exf5 O-O $15) 18. Nd5 {[%emt 0:04:46]} Rfd8 {[%emt 0:04:38]} 19. Kc2 {[%emt 0:00:31]} Bf8 {[%emt 0:02:40]} 20. Be2 {[%emt 0:01:36]} Nc6 {[%emt 0:01:03]} 21. Kc3 {[%emt 0:04:52] Prevents Nd4.} (21. Rhd1 $17) 21... g6 {[%emt 0:02:53]} 22. Rad1 {[%emt 0:03:01]} Bg7+ {[%emt 0:02:34]} 23. Kc2 {[%emt 0:01:03] [#]} Bd4 {[%emt 0:00:49]} ({Black should play} 23... Rxd5 $1 $19 {[%mdl 512]} 24. exd5 Nd4+ 25. Bxd4 cxd4) 24. Kb1 {[%emt 0:04:59]} (24. Bg5 $17 f6 25. Bd2) 24... Bxe3 $19 {[%emt 0:00:27]} 25. Nxe3 {[%emt 0:02:20]} Nf4 {[%emt 0:00:06]} 26. Rxd8+ {[%emt 0:03:29]} Rxd8 {[%emt 0:00:03]} 27. Re1 {[%emt 0:00:30]} Rd2 {[%emt 0:01:35]} 28. Bf1 {[%emt 0:00:55]} Nb4 {[%emt 0:02:08][%cal Oc4c3] Hoping for ...c3!} 29. Rd1 {[%emt 0:06:18]} Rd4 {[%emt 0:02:36] Black is much more active.} 30. Rxd4 {[%emt 0:01:57]} (30. a3 $17 Nc6 31. Kc2) 30... cxd4 $17 {[%emt 0:00:02][%cal Bc5d4,Bd4d3][%mdl 4128] Endgame KBN-KNN} 31. Nc2 {[%emt 0:00:38]} Nc6 {[%emt 0:00:10] Threatens to win with ...d3.} 32. g3 {[%emt 0:01:52]} Ne6 {[%emt 0:00:07]} 33. a4 {[%emt 0:01:06]} (33. f4 {was worth a try.}) 33... d3 $19 {[%emt 0:00:57]} 34. Na3 {[%emt 0:01:06]} (34. Ne3 {keeps fighting.} Nc5 35. axb5 axb5 36. Bg2) 34... Ned4 {[%emt 0:00:10]} 35. axb5 {[%emt 0:00:27]} d2 {[%emt 0:00:40]} 36. Be2 {[%emt 0:00:32]} Nxe2 {[%emt 0:00:04] Pair of Knights!} 37. Kc2 {[%emt 0:00:28]} Ned4+ {[%emt 0:00:14]} 38. Kxd2 {[%emt 0:00:10]} axb5 {[%emt 0:00:06][%cal Ba6b5,Bb5b4][%mdl 32]} 39. Ke3 {[%emt 0:00:53]} Kf8 {[%emt 0:00:16]} 40. Nb1 {[%emt 0:00:21]} Ke7 {[%emt 0:00:08]} 41. Nc3 {[%emt 0:30:38]} Kd6 {[%emt 0:30:12]} 42. f4 {[%emt 0:00:29]} Kc5 {[%emt 0:00:11] aiming for ...Kb4.} 43. Nd5 {[%emt 0:00:19]} b4 {[%emt 0:00:07]} 44. g4 {[%emt 0:00:39]} Nb5 {[%emt 0:00:39] ...b3 is the strong threat.} 45. g5 {[%emt 0:00:00]} c3 {[%emt 0:00:00] Black mates.} 46. bxc3 {[%emt 0:00:00]} Nxc3 {[%emt 0:00:00]} 47. Nxb4 {[%emt 0:00:00]} Nxb4 {[%emt 0:00:00]} 48. h4 {[%emt 0:00:00]} Nd1+ {[%emt 0:00:00]} 49. Kf3 {[%emt 0:00:00]} Kd4 {[%emt 0:00:00]} 50. f5 {[%emt 0:00:00]} Ke5 {[%emt 0:05:39] Weighted Error Value: White=0.41/Black=0.11 (very precise)} 0-1